Cogmind - Beta 14 @@@ ROGUE MODE // 2025.03.25 @ 22:38:41 Player: SelfCookedBird Result: Destroyed by N6-K55(B) with Heavy Battle Rifle Performance ------------- Evolutions (1) 500 Regions Visited (5) 1000 Robots Destroyed (16) 80 Value Destroyed (479) 479 Prototype IDs (0) 0 Alien Tech Used (0) 0 Bonus (-6) -6 TOTAL SCORE: 2053 Bonus ------- Friendly Fire -6 Cogmind --------- Core Integrity 0/400 Matter 300/300 Energy 100/100 System Corruption 0% Temperature Cool (0) Movement Core (200) Ox3 Location -7/Zion Parts ------- > --- POWER (1) -------- (None) > --- PROPULSION (4) --- (None) > --- UTILITY (2) ------ Medium Storage Unit Visual Processing Unit > --- WEAPON (2) ------- (None) > --- INVENTORY (10) --- Heat Sink High-capacity Battery (250) Sensor Array ECM Suite Improved Field Recycling Unit (0) Small Laser Light EM Pulse Cannon Gauss Rifle Flak Cannon Mining Laser Peak State ------------ > --- POWER ------------ Light Deuterium Engine > --- PROPULSION ------- Aluminum Leg Aluminum Leg Aluminum Leg Improved Titanium Leg > --- UTILITY ---------- Medium Storage Unit Visual Processing Unit > --- WEAPON ----------- Medium Laser Improved Datajack > --- INVENTORY -------- Aluminum Leg Heat Sink High-capacity Battery Sensor Array ECM Suite Small Laser Light EM Pulse Cannon Light Assault Rifle Flak Cannon Mining Laser [Rating: 18] Favorites ----------- Power Light Deuterium Engine Engine Light Deuterium Engine Propulsion Aluminum Leg Leg Aluminum Leg Utility Medium Storage Unit Device Sensor Array Storage Medium Storage Unit Processor Visual Processing Unit Weapon Medium Laser Energy Gun Medium Laser Energy Cannon Light EM Pulse Cannon Ballistic Gun Assault Rifle Ballistic Cannon Flak Cannon Special Weapon Mining Laser Special Melee Weapon Improved Datajack Build | -11 -10 -10 -9 -9 -7 ------- Run | Yrd Mat Min Mat Min Zio Slots Evolved 2 | . . . 2 . . Power . | . . . . . . Propulsion 2 | . . . 2 . . Utility . | . . . . . . Weapon . | . . . . . . Parts Attached 32 | 6 5 3 11 6 1 Power 5 | 2 1 . 1 1 . Engine 5 | 2 1 . 1 1 . Core . | . . . . . . Reactor . | . . . . . . Propulsion 9 | 2 . 1 3 2 1 Treads . | . . . . . . Leg 9 | 2 . 1 3 2 1 Wheel . | . . . . . . Hover . | . . . . . . Flight . | . . . . . . Utility 5 | . 3 1 1 . . Device 2 | . 1 1 . . . Storage 2 | . 2 . . . . Processor 1 | . . . 1 . . Hackware . | . . . . . . Protection . | . . . . . . Artifact . | . . . . . . Weapon 13 | 2 1 1 6 3 . Energy Gun 4 | 1 1 1 . 1 . Energy Cannon 2 | . . . 2 . . Ballistic Gun 1 | 1 . . . . . Ballistic Cannon 1 | . . . 1 . . Launcher . | . . . . . . Special Weapon 1 | . . . 1 . . Impact Weapon . | . . . . . . Slashing Weapon . | . . . . . . Piercing Weapon . | . . . . . . Special Melee Weapon 4 | . . . 2 2 . Unidentified Prototypes . | . . . . . . Parts Lost 12 | . . 2 . 4 6 Power 2 | . . . . 1 1 Propulsion 5 | . . . . 2 3 Utility 1 | . . 1 . . . Weapon 4 | . . 1 . 1 2 Highest Loss Streak 5 | . . 1 . 4 5 To Critical Strikes 1 | . . . . . 1 Average Slot Usage (%) 97 | . 95 94 99 93 96 Engine 11 | . 14 14 11 9 10 Leg 39 | . 28 28 44 40 41 Device 2 | . 7 10 . . . Storage 12 | . 15 14 11 11 11 Processor 8 | . . . 10 11 11 Energy Gun 7 | . 14 13 3 4 11 Energy Cannon 4 | . . . 9 6 . Ballistic Gun 4 | . 14 14 1 . . Ballistic Cannon 1 | . . . . 7 . Special Melee Weapon 5 | . . . 6 3 10 Peak Build Rating 18 | 5 8 8 16 16 18 Average Rating 12 | 4 6 7 14 14 16 On Entrance 8 | . 5 8 8 16 15 Naked Turns . | . . . . . . Heaviest Build 25 | 9 21 19 25 25 18 Greatest Support 50 | 20 20 20 40 40 50 Greatest Overweight (x) 3 | . 1 . . . 3 Average Overweight (x) . | . . . . . . Largest Inventory Capacity 10 | 5 10 10 10 10 10 Average Capacity 8 | 5 6 10 10 10 10 Most Carried 10 | 5 6 8 10 10 10 Average Carried 7 | 3 4 5 9 9 9 Final Capacity 10 | 5 10 10 10 10 10 Final Carried 10 | 4 6 8 10 9 10 Class Distribution -------------------- 87% | Mutant 12% | Scavenger-Mutant Dominant Class ---------------- Mutant | -10/Materials Mutant | -10/Mines Mutant | -9/Materials Mutant | -9/Mines Mutant | -7/Zion Resources | -11 -10 -10 -9 -9 -7 ----------- Run | Yrd Mat Min Mat Min Zio Matter Collected 741 | 256 36 128 116 151 54 Remotely . | . . . . . . Salvage Created 592 | 42 36 202 161 151 . Parts 34 | 3 4 7 9 11 . Haulers Intercepted . | . . . . . . Recyclers Shooed . | . . . . . . Parts Field Recycled . | . . . . . . Retrieved Matter . | . . . . . . Parts Self-Destructed . | . . . . . . Prevented . | . . . . . . Kills | -11 -10 -10 -9 -9 -7 ------- Run | Yrd Mat Min Mat Min Zio Combat Hostiles Destroyed 15 | 1 1 4 2 7 . Guns 6 | 1 1 4 . . . Cannons 8 | . . . 1 7 . AOE 1 | . . . 1 . . Classes Destroyed 5 | 1 . . 2 2 . Recycler 1 | . . . 1 . . Swarmer 4 | . . . . 4 . Grunt 9 | 1 1 4 1 2 . Brawler 1 | . . . . 1 . Sentry 1 | . . . 1 . . Best Kill Streak 4 | 1 1 1 1 4 . Combat Bots Only 4 | 1 1 1 1 4 . Max Kills in Single Turn 1 | 1 1 1 1 1 . Gunslinging . | . . . . . . Exploded 1 | . . . 1 . . Melee . | . . . . . . Uniques/NPCs Destroyed . | . . . . . . Combat | -11 -10 -10 -9 -9 -7 -------- Run | Yrd Mat Min Mat Min Zio Hostile Shots Fired 190 | 5 3 25 1 67 89 Missed 60 | 2 2 4 . 9 43 Damage Taken 1775 | 32 12 304 12 608 807 Core 476 | . . 55 . 140 281 Absorbed by Shields . | . . . . . . Core Remaining (%) 89 | 100 . 78 . . . Volleys Fired 62 | 2 8 20 4 28 . Largest 2 | 2 2 2 2 2 . Hottest 100 | 70 70 70 100 100 . Shots Fired 114 | 4 16 36 5 53 . Gun 57 | 4 16 36 . 1 . Cannon 57 | . . . 5 52 . Launcher . | . . . . . . Special . | . . . . . . Kinetic 56 | 2 8 20 1 25 . Thermal 15 | 2 7 5 . 1 . Explosive . | . . . . . . Electromagnetic 43 | . 1 11 4 27 . Robot Hit Streak 18 | 2 4 18 10 4 . Robot Miss Streak 7 | 1 1 1 1 7 . Penetration Max . | . . . . . . Secondary Targets 1 | . . 1 . . . Max Gunslinging Chain 1 | . . 1 . . . Shots Hit Robots 79 | 2 10 30 15 18 4 Core Hits 31 | 2 3 8 3 14 1 Critical Kills . | . . . . . . Critical Parts Destroyed . | . . . . . . Critical Strikes . | . . . . . . Melee Attacks 21 | . . . 10 3 8 Impact . | . . . . . . Slashing . | . . . . . . Piercing . | . . . . . . Sneak Attacks 16 | . . . 10 2 4 Combat Hostiles . | . . . . . . Follow-up Attacks . | . . . . . . Damage Inflicted 955 | 25 118 421 114 258 19 Guns 564 | 25 118 421 . . . Cannons 344 | . . . 86 258 . Explosions 28 | . . . 28 . . Melee . | . . . . . . Ramming 19 | . . . . . 19 Kinetic 409 | 13 56 213 . 127 . Thermal 153 | 12 62 51 28 . . Explosive . | . . . . . . Electromagnetic 374 | . . 157 86 131 . Impact . | . . . . . . Slashing . | . . . . . . Piercing . | . . . . . . Highest Corruption 2 | . . . 2 2 2 Average Corruption 1 | . . . 1 2 2 Corruption Purged . | . . . . . . Corruption Blocked . | . . . . . . Effects 8 | . . . 3 5 . Message Errors 2 | . . . 1 1 . Matter Fused 1 | . . . . 1 . Heat Flow Errors 2 | . . . 1 1 . Energy Discharges 1 | . . . . 1 . Data Loss (minor) 1 | . . . 1 . . Data Loss (major) 1 | . . . . 1 . Overload Shots . | . . . . . . Overflow Damage . | . . . . . . Projectiles . | . . . . . . Explosions . | . . . . . . Melee . | . . . . . . Knockbacks 5 | . . . . 5 . Impact . | . . . . . . Kinetic 4 | . . . . 4 . Secondary 1 | . . . . 1 . Self-Inflicted Damage . | . . . . . . Shots . | . . . . . . Rammed . | . . . . . . Targets Rammed 2 | . . . . . 2 Kicked 2 | . . . . . 2 Crushed . | . . . . . . Highest Temperature 495 | 15 33 105 92 495 . Average Temperature 109 | 8 12 48 27 172 . Received Heat Transfer 510 | 18 6 204 6 276 . Effects 5 | . . . . 5 . Shutdowns 1 | . . . . 1 . Energy Bleed 2 | . . . . 2 . Interference 1 | . . . . 1 . Damage (minor) 1 | . . . . 1 . Siege Activations . | . . . . . . Robots Corrupted . | . . . . . . Combat Hostiles . | . . . . . . Parts Fried . | . . . . . . Impact Corruptions . | . . . . . . Robots Melted . | . . . . . . Combat Hostiles . | . . . . . . Parts Melted . | . . . . . . Heat Transferred 420 | 37 185 148 50 . . Parts Sabotaged . | . . . . . . Parts Stolen . | . . . . . . Parts Stripped . | . . . . . . Power Chain Reactions 1 | . . . 1 . . Alert | -11 -10 -10 -9 -9 -7 ------- Run | Yrd Mat Min Mat Min Zio Peak Influence 243 | 20 58 102 113 243 . Initial 43 | . 13 22 39 43 . Average 60 | 11 34 65 34 204 . Maximum Alert Level 1 | . . . . 1 . Low Security (%) 87 | 100 100 100 100 23 . Level 1 12 | . . . . 76 . Level 2 . | . . . . . . Level 3 . | . . . . . . Level 4 . | . . . . . . Level 5 . | . . . . . . High Security . | . . . . . . Max Security . | . . . . . . Squads Dispatched 2 | . 1 . 1 . . Investigation . | . . . . . . Extermination . | . . . . . . Reinforcement 2 | . 1 . 1 . . Assault . | . . . . . . Garrison . | . . . . . . Intercept . | . . . . . . Searches Triggered . | . . . . . . Construction Impeded . | . . . . . . Haulers Reinforced . | . . . . . . Active Scanning Responses . | . . . . . . Cargo Convoy Interrupts . | . . . . . . Stealth | -11 -10 -10 -9 -9 -7 --------- Run | Yrd Mat Min Mat Min Zio Distress Signals 1 | . . . 1 . . Communications Jammed . | . . . . . . Distress Signals . | . . . . . . Times Spotted 33 | 1 4 3 4 7 14 Peak Tracking Total 11 | 1 2 2 3 3 11 Tactical Retreats 2 | . . . . 1 1 Traps | -11 -10 -10 -9 -9 -7 ------- Run | Yrd Mat Min Mat Min Zio Traps Triggered 2 | . . . 2 . . Indirectly . | . . . . . . Trap Hack Attempts . | . . . . . . Triggered . | . . . . . . Disarmed . | . . . . . . Reprogrammed . | . . . . . . Reused . | . . . . . . Traps Extracted . | . . . . . . Installed . | . . . . . . Triggered . | . . . . . . Machines | -11 -10 -10 -9 -9 -7 ---------- Run | Yrd Mat Min Mat Min Zio Machines Disabled 2 | . . . 1 1 . Max in Single Turn 1 | . . . 1 1 . Machines Repaired . | . . . . . . Machines Dismantled . | . . . . . . Machines Sabotaged . | . . . . . . Overloaded Fab Kills . | . . . . . . Hacking | -11 -10 -10 -9 -9 -7 --------- Run | Yrd Mat Min Mat Min Zio Machines Accessed 3 | . 1 . 2 . . Terminals 2 | . 1 . 1 . . Fabricators . | . . . . . . Repair Stations . | . . . . . . Recycling Units . | . . . . . . Scanalyzers 1 | . . . 1 . . Garrison Access . | . . . . . . Total Hacks 5 | . 1 . 4 . . Successful 3 | . 1 . 2 . . Failed 2 | . . . 2 . . Catastrophic . | . . . . . . Database Lockouts . | . . . . . . Manual . | . . . . . . Terminals 3 | . 1 . 2 . . Fabricators . | . . . . . . Repair Stations . | . . . . . . Recycling Units . | . . . . . . Scanalyzers 2 | . . . 2 . . Garrison Access . | . . . . . . Terminal Hacks 1 | . 1 . . . . Record 1 | . 1 . . . . Fabricator Hacks . | . . . . . . Repair Station Hacks . | . . . . . . Recycling Unit Hacks . | . . . . . . Scanalyzer 2 | . . . 2 . . Insert Component 1 | . . . 1 . . Analyze 1 | . . . 1 . . Garrison Access Hacks . | . . . . . . Unauthorized Hacks . | . . . . . . Terminals . | . . . . . . Fabricators . | . . . . . . Repair Stations . | . . . . . . Recycling Units . | . . . . . . Scanalyzers . | . . . . . . Garrison Access . | . . . . . . Data Cores Recovered . | . . . . . . Used . | . . . . . . Hacking Detections 1 | . . . 1 . . Full Trace Events . | . . . . . . Feedback Events . | . . . . . . Feedback Blocked . | . . . . . . Robot Schematics Acquired . | . . . . . . Robots Built . | . . . . . . Authchips . | . . . . . . Time . | . . . . . . Total Robot Build Rating . | . . . . . . Part Schematics Acquired 1 | . . . 1 . . Parts Built . | . . . . . . Authchips . | . . . . . . Time . | . . . . . . Total Part Build Rating . | . . . . . . Parts Repaired . | . . . . . . Time . | . . . . . . Parts Recycled . | . . . . . . Recycled Matter . | . . . . . . Retrieved Matter . | . . . . . . Retrieved Components . | . . . . . . Parts Scanalyzed 1 | . . . 1 . . Part Schematics Acquired 1 | . . . 1 . . Parts Damaged 1 | . . . 1 . . Bothacking | -11 -10 -10 -9 -9 -7 ------------ Run | Yrd Mat Min Mat Min Zio Used RIF Installer . | . . . . . . Robots Hacked 8 | . . . 5 1 2 Non-combat 5 | . . . 5 . . Combat 3 | . . . . 1 2 Robot Hacks Applied 12 | . . . 9 1 2 parse_system 8 | . . . 5 1 2 no_distress 2 | . . . 2 . . find_recycling 1 | . . . 1 . . check_alert 1 | . . . 1 . . Relay Couplers Released . | . . . . . . Fabnet Peak Effective % . | . . . . . . Robots Rewired . | . . . . . . Allies Hacked . | . . . . . . Hacks Repelled . | . . . . . . Allies | -11 -10 -10 -9 -9 -7 -------- Run | Yrd Mat Min Mat Min Zio Total Allies . | . . . . . . Largest Group . | . . . . . . Highest-Rated Group . | . . . . . . Highest-Rated Ally . | . . . . . . Total Orders . | . . . . . . Ally Attacks . | . . . . . . Total Damage . | . . . . . . Kills . | . . . . . . Allies Corrupted . | . . . . . . Allies Melted . | . . . . . . Intel | -11 -10 -10 -9 -9 -7 ------- Run | Yrd Mat Min Mat Min Zio Robot Analysis Total . | . . . . . . Derelict Logs Recovered 2 | . . 1 . 1 . Drone Launches . | . . . . . . Drone Recoveries . | . . . . . . Exploration | -11 -10 -10 -9 -9 -7 ------------- Run | Yrd Mat Min Mat Min Zio Turns Passed 2162 | 237 326 143 798 283 375 Spaces Moved 1294 | 128 227 58 454 132 295 Core 22 | 19 . . . . 3 Treads . | . . . . . . Legs 1272 | 109 227 58 454 132 292 Wheels . | . . . . . . Hover . | . . . . . . Flight . | . . . . . . Fastest Speed 50 | 50 120 120 120 120 120 Average Speed 119 | 109 120 120 120 120 122 Slowest Speed 200 | 120 190 120 120 120 200 Overloaded Moves . | . . . . . . Propulsion Burnouts . | . . . . . . Robots Hopped . | . . . . . . Cave-ins Triggered . | . . . . . . Exploration Rate (%) 20 | 9 26 11 24 23 30 Regions Visited 5 Branch Regions 3 Pre-discovered Areas . | . . . . . . Known Exits Taken . | . . . . . . Unknown Exits Taken 5 | 1 1 1 1 1 . Scrap Searched 1 | . . . . . 1 Spaces Dug . | . . . . . . Terrain Destroyed 3 | . . . 3 . . Melee . | . . . . . . Projectile . | . . . . . . AOE 3 | . . . 3 . . Terrain Rammed . | . . . . . . Walls Destroyed . | . . . . . . Machines Disabled . | . . . . . . Actions | -11 -10 -10 -9 -9 -7 --------- Run | Yrd Mat Min Mat Min Zio Total 1793 | 220 261 95 705 202 310 Wait 332 | 73 16 12 199 32 . Move 1289 | 127 226 57 453 131 295 Hop . | . . . . . . Pick Up 33 | 8 4 3 14 2 2 Fast Attach 9 | 5 2 . 1 1 . Attach 7 | . . 2 2 3 . Detach 1 | . . . 1 . . Swap 16 | 1 3 1 8 2 1 Drop 21 | 4 2 . 13 . 2 Fire 62 | 2 8 20 4 28 . Melee 21 | . . . 10 3 8 Ram . | . . . . . . Kick 2 | . . . . . 2 Crush . | . . . . . . Escape Stasis . | . . . . . . Rewire . | . . . . . . Trap . | . . . . . . Miscellaneous . | . . . . . . Route ------- -11/Scrapyard -10/Materials -10/Mines -9/Materials (discovered 2 exits: [*Min] / Sto) -9/Mines -7/Zion History --------- Turn | Location | Event 2 | -11/Scrapyard | Met Revision 17 89 | -11/Scrapyard | Discovered new exit (range 8) 238 | -11/Scrapyard | Entered Materials 304 | -10/Materials | Build established: Mutant 545 | -10/Materials | Discovered new exit (range 16) 564 | -10/Materials | Entered Mines 652 | -10/Mines | Discovered new exit (range 6) 707 | -10/Mines | Entered Materials 707 | -9/Materials | Evolved 2 slots: Propulsion x2 708 | -9/Materials | Identified exit to Storage 1484 | -9/Materials | Discovered new exit (range 17) 1505 | -9/Materials | Entered Mines 1549 | -9/Mines | Learned Materials emergency access door positions 1694 | -9/Mines | Lost 4 parts (1p2n1w) 1784 | -9/Mines | A Derelict revealed a hidden shortcut to a safe place 1788 | -9/Mines | Entered Zion 1842 | -7/Zion | System corruption cleaned by Quarantine Array 2068 | -7/Zion | Attacked by Zionites 2124 | -7/Zion | Core integrity fell below 50% 2142 | -7/Zion | Spotted K3-I4T(B) 2153 | -7/Zion | Spotted N6-K55(B) 2161 | -7/Zion | Core integrity fell below 20% 2163 | -7/Zion | Destroyed by N6-K55(B) with Heavy Battle Rifle Last Messages --------------- Machinery. 02108_ 53-UGV(z) pulls a Mak. Spear out of the Twisted Machinery. 02109_ 53-UGV(z) destroyed. 02114_ Aluminum Leg destroyed. 02114_ Critical hit (Impale). 02132_ Kicked Imprinter. 02132_ OQ-M1Z(z) pulls a Mak. Axe out of the Twisted Machinery. 02134_ 8Z-EHD(z) destroyed. 02142_ Aluminum Leg severed. 02145_ Imp. Datajack destroyed. 02146_ FX-0ZT(z) destroyed. 02154_ Knocked back. 02154_ Aluminum Leg destroyed. 02158_ OQ-M1Z(z) destroyed. 02158_ Lgt. Deuterium Engine destroyed. 02158_ Critical hit (Destroy). 02158_ Imp. Titanium Leg destroyed. 02160_ Penetrated by Slug. 02160_ Med. Laser destroyed. 02160_ Knocked back. Map ----- +----------------------------------------------------+ | ?????????????????????????????????????????????????? | | ?????????????????????????????????????????????????? | | ?????????????????????????????????????????????????? | | ?????????????????????????????????????????????????? | | ?????????????????????????????????????????????????? | | ?????????????????????????????????????????????????? | | ?????????????????????????????????????????????????? | | ?????????????????????????????????????????????????? | | ?????????????????????????????????????????????????? | | ?????????????????????????????????????????????????? | | ?????????#""""???????????????????????????????????? | | ???? ???"""" ""?????????????????????????????????? | | ???? """" "#????????????????????????###?????? | | ???? """ ""##"#?????????????????????# #???#? | | ???? """"""#?????????????????????? ?##"? | | ????? """"""##????????????????????? ##""? | | ?????"" """??????????????????????? " ? | | ?????#" ""#???????????????????????? ## | | ?????""" "##??????????????????????? ? | | ?????""" " """#???????????????????????? ? | | ? """ """ """#######??????????????????? #? | | "" """ """## "############????????# ## | | "###BB""""""""""""#???????## | | " "#;;BB""""""""""""#???????# | | "" """""" % z ######### | | ? """""""""" zz%/zl@ | | " """""""#"" z z % | | """ " # % ######### | | """" """ """#;; """"""""""""#???????### | | """"" """ ""####BB""""""""""""#???####### | | """#" =%"""#?#BB"############?### | | $ """"" /%!""##?#####????????????# | | # #""#"""" "###??????????????????##" | | """#"""" """#"#??????????????#!!!#"# | | " ""###""" """"#????????????????#!!! | | "" """""#"" " "##??????????????#" !!#" | | #" """##"" " ""#??????????????#!!!" # | | #" ""##"" % ""#??????????????##!!##" | | #" """#"" % ""#???????????????????#### | | "" #""##"" "##??????????????????????#### | | "" = """##""" ""##????????????????????????#### | | "" """"""""" """#???????????????????????????? | | "" #""" "" ""##???????????????????????????? | | [=#"""" "" """#????????????????????????????? | | #"""" """##????????????????????????????? | | """"" """##????????????????????????????? | | """ "" """#????????????????????????????? | | """ "" ""##???????????????????????????? | | """ "" """#???????????????????????????? | | """ "" """"#??????????????????????????? | +----------------------------------------------------+ Best States ------------- Heat Dissipation 28 Energy Generation 14 Energy Capacity 350 Matter Stores 300 Matter Capacity 300 Sight Range 18 Robot Scan Range 14 Terrain Scan Density 10 Evasion (%) 55 Item Schematics ----------------- Lgt. Deuterium Engine | -9/Materials | Scanalyzed Robot Schematics ------------------ None Fabricated ------------ Nothing Alien Tech Used ----------------- None Achievements -------------- Robot Respite Tourist Uninvited Guest Challenges ------------ None Game ------ Seed ExoskeletonThrowingBeacon Manual? 0 Play Time 00:39:13 Cumulative 1.1 hours Start 2025.03.25 @ 18:45:43 End 2025.03.25 @ 22:38:41 Sessions 4 Manual Loads 0 Difficulty Rogue Special Mode None Game No. 2 Rogue 2 Adventurer 0 Explorer 0 Win Type - Total 0 Types 0/0/0/0/0/0/0/0/0 Lore% 0 Gallery% 4 Achievement% 2 Wizard Run 0 Options --------- Layout 0 ASCII 1 Keyboard 1 Movement Vi Keybinds 0 Fullscreen 1 Font 14/SmallcapsGlow Map View 72x54 Zoom Use 0% Tactical HUD 1 Map Filters NONE Filters NONE Steam 0 RUN: 39b9ad86-9b75-4e04-9b22-228eb08f477d